fUST/lending_fUST_20240811
["ID","MTS","AMOUNT","RATE_DAILY","PERIOD"]
[334648972,1723390239472,-212.0,0.00018773,2]
[334648973,1723390239481,-212.0,0.00018773,2]
[334648974,1723390239490,-212.0,0.00018773,2]
[334648975,1723390239500,-212.0,0.00018773,2]
[334648976,1723390239509,-212.0,0.00018773,2]
[334648977,1723390239518,-212.0,0.00018773,2]
[334648978,1723390239527,-212.0,0.00018773,2]
[334648979,1723390239536,-212.0,0.00018773,2]
[334648980,1723390239546,-212.0,0.00018773,2]
[334648981,1723390239555,-212.0,0.00018773,2]
[334648982,1723390239564,-212.0,0.00018773,2]
[334648983,1723390239574,-212.0,0.00018773,2]
[334648984,1723390239583,-212.0,0.00018773,2]
[334648985,1723390239592,-212.0,0.00018773,2]
[334648986,1723390239602,-212.0,0.00018773,2]
[334648987,1723390239611,-212.0,0.00018773,2]
[334648988,1723390239621,-212.0,0.00018773,2]
[334648989,1723390239632,-212.0,0.00018773,2]
[334648990,1723390239641,-212.0,0.00018773,2]
[334648991,1723390239650,-212.0,0.00018773,2]
[334648992,1723390239661,-212.0,0.00018773,2]
[334648993,1723390239670,-212.0,0.00018773,2]
[334648994,1723390239679,-212.0,0.00018773,2]
[334648995,1723390239688,-212.0,0.00018773,2]
[334648996,1723390239702,-212.0,0.00018773,2]
[334648997,1723390239711,-212.0,0.00018773,2]
[334648998,1723390239723,-212.0,0.00018773,2]
[334648999,1723390239733,-212.0,0.00018773,2]
[334649000,1723390239743,-212.0,0.00018773,2]
[334649001,1723390239754,-212.0,0.00018773,2]
[334649002,1723390239764,-212.0,0.00018773,2]
[334649003,1723390239774,-212.0,0.00018773,2]
[334649004,1723390239785,-212.0,0.00018773,2]
[334649005,1723390239797,-212.0,0.00018773,2]
[334649006,1723390239807,-212.0,0.00018773,2]
[334649007,1723390239816,-212.0,0.00018773,2]
[334649008,1723390239828,-212.0,0.00018773,2]
[334649009,1723390239840,-212.0,0.00018773,2]
[334649010,1723390239849,-212.0,0.00018773,2]
[334649011,1723390239858,-447.0,0.00018773,2]
[334649012,1723390239868,-447.0,0.00018773,2]
[334649013,1723390239877,-447.0,0.00018773,2]
[334649014,1723390239887,-447.0,0.00018773,2]
[334649015,1723390239896,-447.0,0.00018773,2]
[334649016,1723390239906,-447.0,0.00018773,2]
[334649017,1723390239915,-447.0,0.00018773,2]
[334649018,1723390239924,-447.0,0.00018773,2]
[334649019,1723390239936,-447.0,0.00018773,2]
[334649020,1723390239946,-447.0,0.00018773,2]
[334649021,1723390239957,-447.0,0.00018773,2]
[334649023,1723390239966,-447.0,0.00018773,2]
[334649024,1723390239975,-447.0,0.00018773,2]
[334649025,1723390239985,-447.0,0.00018773,2]
[334649026,1723390239994,-447.0,0.00018773,2]
[334649027,1723390240003,-447.0,0.00018773,2]
[334649028,1723390240013,-447.0,0.00018773,2]
[334649029,1723390240022,-447.0,0.00018773,2]
[334649030,1723390240034,-447.0,0.00018773,2]
[334649032,1723390240043,-447.0,0.00018773,2]
[334649034,1723390240052,-217.0,0.00018773,2]
[334649036,1723390240061,-217.0,0.00018773,2]
[334649038,1723390240070,-217.0,0.00018773,2]
[334649040,1723390240079,-217.0,0.00018773,2]
[334649041,1723390240089,-217.0,0.00018773,2]
[334649042,1723390240098,-217.0,0.00018773,2]
[334649043,1723390240108,-217.0,0.00018773,2]
[334649044,1723390240118,-217.0,0.00018773,2]
[334649045,1723390240129,-217.0,0.00018773,2]
[334649046,1723390240138,-217.0,0.00018773,2]
[334649047,1723390240147,-217.0,0.00018773,2]
[334649048,1723390240157,-217.0,0.00018773,2]
[334649049,1723390240166,-447.0,0.00018773,2]
[334649050,1723390240175,-447.0,0.00018773,2]
[334649051,1723390240185,-447.0,0.00018773,2]
[334649052,1723390240195,-447.0,0.00018773,2]
[334649053,1723390240205,-447.0,0.00018773,2]
[334649054,1723390240216,-447.0,0.00018773,2]
[334649055,1723390240228,-447.0,0.00018773,2]
[334649056,1723390240237,-447.0,0.00018773,2]
[334649058,1723390240248,-447.0,0.00018773,2]
[334649060,1723390240258,-447.0,0.00018773,2]
[334649062,1723390240268,-447.0,0.00018773,2]
[334649064,1723390240278,-447.0,0.00018773,2]
[334649066,1723390240287,-447.0,0.00018773,2]
[334649068,1723390240296,-447.0,0.00018773,2]
[334649070,1723390240306,-447.0,0.00018773,2]
[334649072,1723390240315,-447.0,0.00018773,2]
[334649074,1723390240325,-447.0,0.00018773,2]
[334649076,1723390240334,-222.0,0.00018773,2]
[334649078,1723390240344,-222.0,0.00018773,2]
[334649080,1723390240354,-222.0,0.00018773,2]
[334649082,1723390240363,-222.0,0.00018773,2]
[334649084,1723390240374,-222.0,0.00018773,2]
[334649086,1723390240387,-222.0,0.00018773,2]
[334649088,1723390240396,-222.0,0.00018773,2]
[334649089,1723390240406,-222.0,0.00018773,2]
[334649091,1723390240415,-222.0,0.00018773,2]
[334649093,1723390240424,-222.0,0.00018773,2]
[334649095,1723390240433,-222.0,0.00018773,2]
[334649097,1723390240443,-222.0,0.00018773,2]
[334649098,1723390240453,-222.0,0.00018773,2]
[334649100,1723390240465,-222.0,0.00018773,2]
[334649101,1723390240475,-222.0,0.00018773,2]
[334649103,1723390240487,-222.0,0.00018773,2]
[334649104,1723390240496,-450.0,0.00018773,2]
[334649105,1723390240506,-450.0,0.00018773,2]
[334649106,1723390240516,-450.0,0.00018773,2]
[334649107,1723390240525,-450.0,0.00018773,2]
[334649108,1723390240534,-450.0,0.00018773,2]
[334649109,1723390240544,-450.0,0.00018773,2]
[334649111,1723390240554,-450.0,0.00018773,2]
[334649113,1723390240564,-450.0,0.00018773,2]
[334649115,1723390240574,-450.0,0.00018773,2]
[334649116,1723390240583,-450.0,0.00018773,2]
[334649117,1723390240593,-450.0,0.00018773,2]
[334649118,1723390240602,-450.0,0.00018773,2]
[334649119,1723390240612,-450.0,0.00018773,2]
[334649120,1723390240621,-450.0,0.00018773,2]
[334649121,1723390240632,-222.0,0.00018773,2]
[334649122,1723390240641,-222.0,0.00018773,2]
[334649123,1723390240650,-222.0,0.00018773,2]
[334649124,1723390240660,-222.0,0.00018773,2]
[334649125,1723390240670,-222.0,0.00018773,2]
[334649126,1723390240679,-222.0,0.00018773,2]
[334649127,1723390240688,-222.0,0.00018773,2]
[334649128,1723390240697,-222.0,0.00018773,2]
[334649129,1723390240707,-222.0,0.00018773,2]
[334649130,1723390240717,-222.0,0.00018773,2]
[334649131,1723390240727,-222.0,0.00018773,2]
[334649132,1723390240738,-222.0,0.00018773,2]
[334649133,1723390240748,-222.0,0.00018773,2]
[334649134,1723390240757,-222.0,0.00018773,2]
[334649135,1723390240767,-222.0,0.00018773,2]
[334649136,1723390240776,-456.0,0.00018773,2]
[334649137,1723390240786,-456.0,0.00018773,2]
[334649138,1723390240795,-456.0,0.00018773,2]
[334649139,1723390240806,-456.0,0.00018773,2]
[334649140,1723390240816,-456.0,0.00018773,2]
[334649141,1723390240828,-456.0,0.00018773,2]
[334649142,1723390240839,-456.0,0.00018773,2]
[334649143,1723390240850,-456.0,0.00018773,2]
[334649144,1723390240860,-456.0,0.00018773,2]
[334649145,1723390240871,-456.0,0.00018773,2]
[334649146,1723390240883,-456.0,0.00018773,2]
[334649147,1723390240895,-456.0,0.00018773,2]
[334649148,1723390240904,-456.0,0.00018773,2]
[334649149,1723390240916,-456.0,0.00018773,2]
[334649150,1723390240927,-222.0,0.00018773,2]
[334649151,1723390240939,-222.0,0.00018773,2]
[334649152,1723390240948,-222.0,0.00018773,2]
[334649153,1723390240957,-222.0,0.00018773,2]
[334649154,1723390240967,-222.0,0.00018773,2]
[334649155,1723390240977,-222.0,0.00018773,2]
[334649156,1723390240986,-222.0,0.00018773,2]
[334649157,1723390240995,-222.0,0.00018773,2]
[334649158,1723390241005,-222.0,0.00018773,2]
[334649159,1723390241016,-222.0,0.00018773,2]
[334649160,1723390241026,-222.0,0.00018773,2]
[334649161,1723390241036,-222.0,0.00018773,2]
[334649162,1723390241045,-222.0,0.00018773,2]
[334649163,1723390241056,-222.0,0.00018773,2]
[334649164,1723390241065,-462.0,0.00018773,2]
[334649165,1723390241076,-462.0,0.00018773,2]
[334649166,1723390241085,-462.0,0.00018773,2]
[334649167,1723390241097,-462.0,0.00018773,2]
[334649168,1723390241107,-462.0,0.00018773,2]
[334649169,1723390241117,-462.0,0.00018773,2]
[334649170,1723390241129,-462.0,0.00018773,2]
[334649171,1723390241139,-462.0,0.00018773,2]
[334649172,1723390241148,-462.0,0.00018773,2]
[334649173,1723390241159,-462.0,0.00018773,2]
[334649174,1723390241169,-462.0,0.00018773,2]
[334649175,1723390241179,-462.0,0.00018773,2]
[334649176,1723390241188,-462.0,0.00018773,2]
[334649177,1723390241198,-150.0,0.00018795,2]
[334649178,1723390241208,-150.112233,0.000188,2]
[334649179,1723390241218,-150.112233,0.000188,2]
[334649180,1723390241228,-3060.37619985,0.000188,2]
[334649181,1723390241239,-86088.4728999,0.00018801,2]
[334649182,1723390241248,-1711.58199532,0.00018811,2]
[334649183,1723390241260,-3538.22319481,0.00018843,2]
[334649184,1723390241269,-154.76012181,0.00018845,2]
[334649185,1723390241278,-139705.33509183,0.00018886,2]
[334649186,1723390242361,-1942.80555174,0.00017882,2]
[334649187,1723390242525,-6894.1145829,0.00017882,2]
[334649188,1723390242535,-49093.44688669,0.00018886,2]
[334649189,1723390242544,-717.368456,0.00018886,2]
[334649190,1723390242554,-717.368456,0.00018886,2]
[334649191,1723390242563,-601.3570708,0.00018899,2]
[334649192,1723390242572,-150.112233,0.000189,2]
[334649193,1723390242582,-150.112233,0.000189,2]
[334649194,1723390242593,-151.0,0.00018901,2]
[334649195,1723390242602,-623.009432,0.00018901,2]
[334649196,1723390242612,-623.009432,0.00018901,2]
[334649197,1723390242621,-151.0,0.00018901,2]
[334649198,1723390242634,-475.0,0.00018904,2]
[334649199,1723390242643,-209.19870001,0.0001891,2]
[334649200,1723390242652,-154.76012181,0.00018921,2]
[334649201,1723390242661,-519.6282897,0.0001893,2]
[334649202,1723390242670,-154.3087748,0.0001893,2]
[334649203,1723390242679,-154.76012181,0.00018945,2]
[334649204,1723390242689,-154.76012181,0.0001895,2]
[334649205,1723390242699,-201.64749152,0.0001895,2]
[334649206,1723390242708,-201.64749152,0.0001895,2]
[334649207,1723390242718,-151.0,0.00018957,2]
[334649208,1723390242727,-151.0,0.00018957,2]
[334649209,1723390242737,-219.367905,0.00018957,2]
[334649210,1723390242746,-157.517508,0.00018957,2]
[334649211,1723390242755,-157.517508,0.00018957,2]
[334649212,1723390242765,-151.0,0.00018957,2]
[334649213,1723390242775,-266.424095,0.00018957,2]
[334649214,1723390242787,-266.424095,0.00018957,2]
[334649215,1723390242801,-151.0,0.00018957,2]
[334649216,1723390242810,-151.0,0.00018957,2]
[334649217,1723390242820,-151.0,0.00018957,2]
[334649218,1723390242830,-151.0,0.00018957,2]
[334649219,1723390242842,-151.0,0.00018967,2]
[334649221,1723390242851,-151.0,0.00018967,2]
[334649222,1723390242861,-151.0,0.00018967,2]
[334649223,1723390242871,-717.368456,0.00018969,2]
[334649224,1723390242881,-717.368456,0.00018969,2]
[334649226,1723390242891,-86088.4728999,0.00018969,2]
[334649228,1723390242900,-154.76012181,0.00018969,2]
[334649230,1723390242910,-32303.633893,0.00018969,2]
[334649296,1723390282951,273.37336231,9.9e-05,2]
[334649297,1723390298841,273.37336231,9.9e-05,2]
[334649298,1723390313390,9864.46336421,0.00012,2]
[334649299,1723390314842,273.37336231,9.9e-05,2]
[334649300,1723390315890,271.18563857,0.00012,2]
[334649301,1723390318109,4712.37284123,0.00012,2]
[334649302,1723390330258,273.37336231,9.9e-05,2]
[334649303,1723390345694,273.37336231,9.9e-05,2]
[334649304,1723390362107,273.37336231,9.9e-05,2]
[334649305,1723390377613,273.37336231,9.9e-05,2]
[334649310,1723390393888,273.37336231,9.9e-05,2]
[334649311,1723390409017,273.37336231,9.9e-05,2]
[334649312,1723390448998,1559.08594584,0.00012,2]
[334649313,1723390467146,182.671531,0.00014247,2]
[334649314,1723390478512,210.04889723,0.00014545,2]
[334649315,1723390499594,7007.90701187,0.00014545,2]
[334649316,1723390542307,273.37336231,9.9e-05,2]
[334649317,1723390557993,273.37336231,9.9e-05,2]
[334649318,1723390573888,273.37336231,9.9e-05,2]
[334649319,1723390589195,273.37336231,9.9e-05,2]
[334649320,1723390604310,181.70658146,0.00012,2]
[334649321,1723390605363,273.37336231,9.9e-05,2]
[334649322,1723390607782,2108.40472945,9.9e-05,2]
[334649323,1723390619292,181.70658146,0.00012,2]
[334649324,1723390621114,273.37336231,9.9e-05,2]
[334649325,1723390623687,2596.89778515,9.9e-05,2]
[334649326,1723390634529,155.25471992,9.9e-05,2]
[334649327,1723390643291,1717.88440243,0.00012,2]
[334649328,1723390649493,1384.13048712,0.00012,2]
[334649329,1723390652786,218.66301514,9.9e-05,2]
[334649330,1723390667370,1644.63563966,0.00012,7]
[334649333,1723390704030,1091.50397563,0.00014545,2]
[334649334,1723390704443,1384.13048712,0.00014545,2]
[334649335,1723390713924,413.29975831,0.00014545,2]
[334649336,1723390714038,3090.31067256,0.00014545,2]
[334649337,1723390742022,36679.65108713,0.00014545,2]
[334649340,1723390830177,273.37336231,9.9e-05,2]
[334649341,1723390850188,3080.88889929,0.00012,2]
[334649342,1723390853492,404.65460675,0.00012,2]
[334649343,1723390854237,223.26161126,0.00012,2]
[334649344,1723390861188,241.14492435,0.00012,2]
[334649345,1723390866387,3785.54866294,0.00012,2]
[334649346,1723390869089,154.97454352,0.00012,2]
[334649347,1723390869189,232.45588428,0.00012,2]
[334649348,1723390872006,1626.86783463,9.9e-05,2]
[334649349,1723390889509,19463.40149674,9.9e-05,2]
[334649350,1723390896427,5260.69814708,9.9e-05,2]
[334649352,1723390912682,313.20952962,0.00015,2]
[334649353,1723390933095,625.34364194,0.00012,2]
[334649354,1723390937800,202.59310174,0.00012,3]
[334649355,1723390942360,1621.05384492,0.00012,2]
[334649356,1723390944083,8457.51461955,0.00012,2]
[334649357,1723390950555,404.97965185,0.00012,2]
[334649358,1723390954389,167.294952,0.00014247,2]
[334649359,1723390957698,2507.25549489,0.00012,2]
[334649360,1723390963074,1412.94429665,0.00012,2]
[334649361,1723390964205,155.26419139,0.00012,10]
[334649363,1723391003910,155.90530926,0.00014545,2]
[334649364,1723391011385,285.55791822,0.00014545,2]
[334649367,1723391031721,334.11,0.00015707,7]
[334649372,1723391202152,-2980.61897052,0.00015612,2]
[334649373,1723391232115,273.37336231,9.9e-05,2]
[334649374,1723391247617,273.37336231,9.9e-05,2]
[334649375,1723391263950,273.37336231,9.9e-05,2]
[334649376,1723391270557,1109.82295728,0.00015,2]
[334649377,1723391279336,273.37336231,9.9e-05,2]
[334649378,1723391294776,273.37336231,9.9e-05,2]
[334649379,1723391307052,305.57541076,0.00015,2]
[334649380,1723391307168,3601.91477368,9.9e-05,2]
[334649381,1723391310595,319.6458186,0.00012,2]
[334649382,1723391311575,273.37336231,9.9e-05,2]
[334649383,1723391312440,11026.32168068,9.9e-05,2]
[334649384,1723391314604,157.62048758,9.9e-05,2]
[334649385,1723391316684,288.16966581,0.00012,2]
[334649386,1723391320341,210.97055525,0.00012,2]
[334649387,1723391322087,218.30768663,9.9e-05,2]
[334649388,1723391327022,273.37336231,9.9e-05,2]
[334649389,1723391330406,330.73988639,0.00012,2]
[334649394,1723391340493,10494.02893691,9.9e-05,2]
[334649395,1723391343046,273.37336231,9.9e-05,2]
[334649400,1723391350580,952.621668,0.00015,2]
[334649402,1723391358403,273.37336231,9.9e-05,2]
[334649403,1723391360275,188.40491976,9.999e-05,2]
[334649405,1723391368064,596.12560349,0.00015,2]
[334649406,1723391368090,513.69735379,0.00015,2]
[334649407,1723391370217,551.59958086,0.00014545,2]
[334649408,1723391370241,468.94459905,0.00014545,2]
[334649420,1723391383168,534.3800288,9.999e-05,2]
[334649421,1723391387470,81.90952616,0.00015608,2]
[334649422,1723391389519,326.8577515,0.00015,2]
[334649423,1723391402996,8969.37255983,0.00014545,2]
[334649424,1723391405333,209.37253615,9.999e-05,2]
[334649425,1723391413503,500.0,0.00027,120]
[334649426,1723391414779,601.3570708,9.999e-05,2]
[334649547,1723391438864,-4327.26577014,0.00015608,2]
[334649548,1723391438876,-300.0,0.00015707,2]
[334649549,1723391438885,-300.0,0.00015707,2]
[334649550,1723391438895,-20777.37607493,0.00015708,2]
[334649551,1723391438904,-2710.33053727,0.00015708,2]
[334649552,1723391438913,-2164.45800918,0.00015708,2]
[334649553,1723391438922,-1765.03360075,0.00015708,2]
[334649554,1723391438932,-8836.92013464,0.00015708,2]
[334649555,1723391438944,-1612.06535955,0.00015708,2]
[334649556,1723391438953,-1993.38782086,0.00015708,2]
[334649557,1723391438963,-154.76012181,0.00015708,2]
[334649558,1723391438973,-155.30978736,0.00015708,2]
[334649559,1723391438983,-165.18416771,0.00015708,2]
[334649560,1723391438992,-451.20757444,0.00015708,2]
[334649561,1723391439002,-720.175428,0.00015708,2]
[334649562,1723391439011,-35040.45161499,0.00015709,2]
[334649563,1723391439021,-154.76012181,0.0001571,2]
[334649564,1723391439030,-154.76012181,0.0001571,2]
[334649565,1723391439040,-154.76012181,0.00015712,2]
[334649566,1723391439050,-7035.0255679,0.00015712,2]
[334649567,1723391439060,-194.74416001,0.00015712,2]
[334649568,1723391439071,-201.64749152,0.00015744,2]
[334649569,1723391439081,-569.37379121,0.00015744,2]
[334649570,1723391439091,-154.76012181,0.00016,2]
[334649571,1723391439100,-180.87946219,0.00016038,2]
[334649572,1723391439110,-342.54102064,0.00016095,2]
[334649573,1723391439120,-195.44979789,0.00016095,2]
[334649574,1723391439134,-193.96535773,0.00016095,2]
[334649575,1723391439144,-154.76012181,0.00016095,2]
[334649576,1723391439154,-157.09694705,0.00016095,2]
[334649577,1723391439163,-154.76012181,0.00016095,2]
[334649578,1723391439174,-278.39188772,0.0001611,2]
[334649579,1723391439184,-250.53341872,0.0001611,2]
[334649580,1723391439194,-154.79678224,0.0001611,2]
[334649581,1723391439203,-150.112233,0.000163,2]
[334649582,1723391439213,-2653.26267966,0.00016432,2]
[334649583,1723391439223,-500.0,0.00016438,2]
[334649584,1723391439232,-500.0,0.00016438,2]
[334649585,1723391439241,-500.0,0.00016438,2]
[334649586,1723391439251,-500.0,0.00016438,2]
[334649587,1723391439260,-500.0,0.00016438,2]
[334649588,1723391439270,-500.0,0.00016438,2]
[334649589,1723391439280,-500.0,0.00016438,2]
[334649590,1723391439290,-500.0,0.00016438,2]
[334649591,1723391439300,-500.0,0.00016438,2]
[334649592,1723391439309,-500.0,0.00016438,2]
[334649593,1723391439318,-500.0,0.00016438,2]
[334649594,1723391439328,-212.24589051,0.00016438,2]
[334649595,1723391439338,-500.0,0.00016438,2]
[334649596,1723391439348,-500.0,0.00016438,2]
[334649597,1723391439358,-500.0,0.00016438,2]
[334649598,1723391439368,-500.0,0.00016438,2]
[334649599,1723391439383,-500.0,0.00016438,2]
[334649600,1723391439393,-164.71616216,0.0001651,2]
[334649601,1723391439403,-287.58098993,0.0001651,2]
[334649602,1723391439413,-500.0,0.0001651,2]
[334649603,1723391439423,-500.0,0.0001651,2]
[334649604,1723391439433,-500.0,0.0001651,2]
[334649605,1723391439444,-500.0,0.0001651,2]
[334649606,1723391439453,-500.0,0.0001651,2]
[334649607,1723391439463,-500.0,0.0001651,2]
[334649608,1723391439472,-500.0,0.0001651,2]
[334649609,1723391439482,-346.17100076,0.0001651,2]
[334649610,1723391439492,-500.0,0.0001651,2]
[334649611,1723391439501,-500.0,0.0001651,2]
[334649612,1723391439511,-500.0,0.0001651,2]
[334649613,1723391439520,-500.0,0.0001651,2]
[334649614,1723391439530,-500.0,0.0001651,2]
[334649615,1723391439540,-500.0,0.0001651,2]
[334649616,1723391439549,-500.0,0.0001651,2]
[334649617,1723391439559,-500.0,0.0001651,2]
[334649618,1723391439568,-542.31970053,0.0001651,2]
[334649619,1723391439578,-110113.475723,0.00016511,2]
[334649620,1723391439587,-51049.90124938,0.00016512,2]
[334649621,1723391439597,-220226.951445,0.00016512,2]
[334649622,1723391439607,-532.50037914,0.00016532,2]
[334649623,1723391439618,-150.112233,0.000167,2]
[334649624,1723391439630,-2653.26267963,0.00016861,2]
[334649625,1723391439639,-3060.37619985,0.00016919,2]
[334649626,1723391439649,-150.112233,0.00017,2]
[334649627,1723391439659,-110113.475723,0.00017009,2]
[334649628,1723391439669,-159.369747,0.00017009,2]
[334649629,1723391439679,-159.369747,0.00017009,2]
[334649630,1723391439688,-152.565977,0.00017009,2]
[334649631,1723391439698,-1685.50907,0.00017009,2]
[334649632,1723391439707,-1685.50907,0.00017009,2]
[334649633,1723391439719,-816.94684465,0.00017019,3]
[334649634,1723391439729,-154.76012181,0.00017019,2]
[334649635,1723391439738,-151.0,0.00017178,2]
[334649636,1723391439747,-420.0,0.00017278,2]
[334649637,1723391439759,-2653.26267963,0.00017289,2]
[334649638,1723391439769,-150.112233,0.000173,2]
[334649639,1723391439778,-150.112233,0.000176,2]
[334649640,1723391439788,-2653.26267963,0.00017718,2]
[334649641,1723391439799,-294.6834504,0.00017808,2]
[334649642,1723391439809,-294.6834504,0.00017808,2]
[334649643,1723391439818,-294.6834504,0.00017808,2]
[334649644,1723391439827,-12640.38108741,0.0001789,2]
[334649645,1723391439836,-1364.59246336,0.00018,2]
[334649646,1723391439846,-9430.85260519,0.00018,2]
[334649647,1723391439857,-150.112233,0.00018,2]
[334649648,1723391439867,-244.96596268,0.00018,2]
[334649649,1723391439878,-150.112233,0.00018,2]
[334649650,1723391439887,-153.0,0.0001806,2]
[334649651,1723391439896,-153.0,0.00018108,2]
[334649652,1723391439905,-315.1950708,0.00018108,2]
[334649653,1723391439915,-153.0,0.00018108,2]
[334649654,1723391439924,-153.0,0.00018108,2]
[334649655,1723391439935,-5240.178669,0.00018125,2]
[334649656,1723391439944,-2653.26267963,0.00018146,2]
[334649657,1723391439954,-1020.54417991,0.00018182,2]
[334649658,1723391439964,-534.3800288,0.00018182,2]
[334649659,1723391439973,-1838.28196962,0.00018182,2]
[334649660,1723391439984,-150.112233,0.000182,2]
[334649662,1723391439994,-537.303715,0.00018246,2]
[334649664,1723391440004,-537.303715,0.00018246,2]
[334649665,1723391440014,-308.615301,0.00018246,2]
[334649666,1723391440023,-308.615301,0.00018246,2]
[334649667,1723391440032,-151.0,0.00018246,2]
[334649668,1723391440043,-371.374112,0.00018246,2]
[334649669,1723391440052,-371.374112,0.00018246,2]
[334649670,1723391440062,-151.0,0.00018246,2]
[334649671,1723391440071,-652.406214,0.00018246,2]
[334649672,1723391440081,-652.406214,0.00018246,2]
[334649673,1723391440090,-1172.99085,0.00018246,2]
[334649674,1723391440100,-151.0,0.00018246,2]
[334649675,1723391440110,-1172.99085,0.00018246,2]
[334649677,1723391440119,-303.274043,0.00018246,2]
[334649678,1723391440130,-303.274043,0.00018246,2]
[334649679,1723391440139,-151.0,0.00018246,2]
[334649680,1723391440150,-385.8453,0.00018246,2]
[334649681,1723391440160,-385.8453,0.00018246,2]
[334649682,1723391440170,-151.0,0.00018246,2]
[334649683,1723391440180,-88888.0,0.00018256,2]
[334649684,1723391440189,-159.369747,0.00018256,2]
[334649685,1723391440198,-159.369747,0.00018256,2]
[334649686,1723391440208,-1685.50907,0.00018256,2]
[334649688,1723391440218,-1685.50907,0.00018256,2]
[334649689,1723391440228,-150.112233,0.000183,2]
[334649690,1723391440237,-4409.17529625,0.00018303,2]
[334649691,1723391440247,-9651.03918107,0.00018316,2]
[334649692,1723391440256,-2280.2888261,0.00018346,3]
[334649693,1723391440265,-989.95922516,0.00018356,2]
[334649694,1723391440275,-150.112233,0.000184,2]
[334649695,1723391440284,-154.76012181,0.00018402,2]
[334649696,1723391440294,-150.112233,0.000185,2]
[334649697,1723391440304,-571.912253,0.00018587,2]
[334649698,1723391440313,-571.912253,0.00018587,2]
[334649699,1723391440323,-150.112233,0.000186,2]
[334649700,1723391440332,-151.0,0.00018629,2]
[334649701,1723391440342,-1172.99085,0.00018629,2]
[334649702,1723391440352,-151.0,0.00018629,2]
[334649703,1723391440362,-1172.99085,0.00018629,2]
[334649705,1723391440373,-303.274043,0.00018629,2]
[334649707,1723391440383,-303.274043,0.00018629,2]
[334649708,1723391440393,-385.8453,0.00018629,2]
[334649710,1723391440402,-385.8453,0.00018629,2]
[334649712,1723391440412,-294.6834504,0.0001863,2]
[334649714,1723391440421,-151.0,0.00018657,2]
[334649716,1723391440430,-188.639838,0.00018657,2]
[334649718,1723391440440,-188.639838,0.00018657,2]
[334649720,1723391440449,-2097.766407,0.00018657,2]
[334649721,1723391440458,-726.963009,0.00018657,2]
[334649723,1723391440468,-2097.766407,0.00018657,2]
[334649725,1723391440478,-726.963009,0.00018657,2]
[334649727,1723391440487,-762.956574,0.00018657,2]
[334649728,1723391440497,-762.956574,0.00018657,2]
[334649729,1723391440508,-305.222173,0.00018657,2]
[334649731,1723391440517,-305.222173,0.00018657,2]
[334649732,1723391440526,-151.0,0.00018657,2]
[334649734,1723391440536,-664.23911189,0.00018658,2]
[334649736,1723391440545,-151.0,0.00018663,2]
[334649737,1723391440555,-151.0,0.00018663,2]
[334649739,1723391440564,-172.566062,0.00018663,2]
[334649740,1723391440574,-172.566062,0.00018663,2]
[334649741,1723391440583,-151.0,0.00018663,2]
[334649743,1723391440592,-151.0,0.00018663,2]
[334649745,1723391440601,-151.0,0.00018663,2]
[334649747,1723391440610,-188.639838,0.00018663,2]
[334649748,1723391440619,-188.639838,0.00018663,2]
[334649750,1723391440632,-2097.766407,0.00018663,2]
[334649752,1723391440642,-726.963009,0.00018663,2]